[Event "Gibraltar Masters 18th"]
[Site "Gibraltar"]
[Date "2020.01.26"]
[Round "6.26"]
[White "Navara, David"]
[Black "Roussel-Roozmon, Thomas"]
[Result "1-0"]
[ECO "E40"]
[WhiteElo "2717"]
[BlackElo "2473"]
[PlyCount "125"]
[EventDate "2020.01.21"]
[EventType "swiss"]
[EventRounds "10"]
[EventCountry "GGB"]
[SourceTitle "BritBase"]
[Source "John Saunders"]
[SourceDate "2021.06.05"]
[SourceVersion "1"]
[SourceVersionDate "2021.06.05"]
[SourceQuality "1"]
[TimeControl "40/100:0"]
[WhiteClock "0:48:08"]
[BlackClock "0:15:02"]

1. c4 {[%emt 0:00:00]} e6 {[%emt 0:00:00]} 2. Nc3 {[%emt 0:00:00]} d5 {[%emt 0:
00:00]} 3. d4 {[%emt 0:00:00]} Bb4 {[%emt 0:00:00]} 4. a3 {[%emt 0:00:00]}
Bxc3+ {[%emt 0:00:00]} 5. bxc3 {[%emt 0:00:00]} Nf6 {[%emt 0:00:00]} 6. e3 {
[%emt 0:00:00]} c6 {[%emt 0:00:00]} 7. a4 {[%emt 0:00:00]} O-O {[%emt 0:00:00]}
8. Ba3 {[%emt 0:00:00]} Re8 {[%emt 0:00:00]} 9. Nf3 {[%emt 0:00:00]} b6 {
[%emt 0:00:00]} 10. cxd5 {[%emt 0:00:00]} cxd5 {[%emt 0:00:00]} 11. Bb5 {
[%emt 0:00:00]} Bd7 {[%emt 0:00:00]} 12. Bd3 {[%emt 0:00:00]} Bc8 {[%emt 0:00:
00]} 13. Qe2 {[%emt 0:00:00]} Ne4 {[%emt 0:00:00]} 14. O-O {[%emt 0:00:00]} Nc6
{[%emt 0:00:00]} 15. Rac1 {[%emt 0:00:00]} Bb7 {[%emt 0:00:00]} 16. c4 {
[%emt 0:00:00]} Rc8 {[%emt 0:00:00]} 17. cxd5 {[%emt 0:00:00]} Qxd5 {[%emt 0:
00:00]} 18. Bc4 {[%emt 0:00:00]} Qd7 {[%emt 0:00:00]} 19. Qd3 {[%emt 0:00:00]}
Nd6 {[%emt 0:00:00]} 20. Ng5 {[%emt 0:00:00]} g6 {[%emt 0:00:00]} 21. Ba2 {
[%emt 0:00:00]} Na5 {[%emt 0:00:00]} 22. d5 {[%emt 0:00:00]} exd5 {[%emt 0:00:
00]} 23. Bxd5 {[%emt 0:00:00]} Bxd5 {[%emt 0:00:00]} 24. Qxd5 {[%emt 0:00:00]}
Qf5 {[%emt 0:00:00]} 25. Qxf5 {[%emt 0:00:00]} Nxf5 {[%emt 0:00:00]} 26. Ne4 {
[%emt 0:00:00]} Red8 {[%emt 0:00:00]} 27. g4 {[%emt 0:00:00]} Nc4 {[%emt 0:00:
00]} 28. Bb4 {[%emt 0:00:00]} Nfd6 {[%emt 0:00:00]} 29. Nf6+ {[%emt 0:00:00]}
Kg7 {[%emt 0:00:00]} 30. Bc3 {[%emt 0:00:00]} h6 {[%emt 0:00:00]} 31. Rfd1 {
[%emt 0:00:00]} Kf8 {[%emt 0:00:00]} 32. e4 {[%emt 0:00:00]} Ke7 {[%emt 0:00:
00]} 33. Nd5+ {[%emt 0:00:00]} Kf8 {[%emt 0:00:00]} 34. e5 {[%emt 0:00:23]} Ne4
{[%emt 0:00:00]} 35. Bb4+ {[%emt 0:00:00]} Kg7 {[%emt 0:00:00]} 36. Be7 {
[%emt 0:00:00]} Re8 {[%emt 0:00:16]} 37. Bf6+ {[%emt 0:00:27]} Nxf6 {[%emt 0:
00:13]} 38. exf6+ {[%emt 0:00:00]} Kf8 {[%emt 0:00:00]} 39. Ne7 {[%emt 0:00:18]
} Rc5 {[%emt 0:00:00]} 40. Kg2 {[%emt 0:00:00]} a6 {[%emt 0:00:30]} 41. Rc3 {
[%emt 0:00:00]} Rxe7 {[%emt 0:00:00]} 42. fxe7+ {[%emt 0:00:00]} Kxe7 {[%emt 0:
00:00]} 43. Rcd3 {[%emt 0:00:00]} h5 {[%emt 0:00:00]} 44. Rd7+ {[%emt 0:00:00]}
Ke6 {[%emt 0:00:00]} 45. h3 {[%emt 0:00:00]} hxg4 {[%emt 0:00:00]} 46. hxg4 {
[%emt 0:00:00]} b5 {[%emt 0:00:00]} 47. Ra7 {[%emt 0:00:00]} Rc6 {[%emt 0:00:
00]} 48. Re1+ {[%emt 0:00:00]} Kf6 {[%emt 0:00:00]} 49. Ree7 {[%emt 0:00:00]}
Nd6 {[%emt 0:00:00]} 50. a5 {[%emt 0:00:00]} b4 {[%emt 0:00:00]} 51. Rec7 {
[%emt 0:00:00]} Rxc7 {[%emt 0:00:00]} 52. Rxc7 {[%emt 0:00:00]} Ke5 {[%emt 0:
00:00]} 53. Rc6 {[%emt 0:00:00]} Kd5 {[%emt 0:00:14]} 54. Rxa6 {[%emt 0:00:00]}
Kc5 {[%emt 0:00:00]} 55. Ra8 {[%emt 0:00:00]} b3 {[%emt 0:00:00]} 56. Rb8 {
[%emt 0:00:00]} Nb5 {[%emt 0:00:00]} 57. a6 {[%emt 0:00:00]} b2 {[%emt 0:00:00]
} 58. a7 {[%emt 0:00:00]} Nxa7 {[%emt 0:00:47]} 59. Rxb2 {[%emt 0:00:00]} Nb5 {
[%emt 0:00:00]} 60. Kf3 {[%emt 0:00:00]} Nd6 {[%emt 0:00:14]} 61. Kf4 {[%emt 0:
00:00]} Kd5 {[%emt 0:00:08]} 62. Re2 {[%emt 0:00:00]} f6 {[%emt 0:00:00]} 63.
g5 {[%emt 0:00:00]} 1-0

[Event "Gibraltar Masters 18th"]
[Site "Gibraltar"]
[Date "2020.01.26"]
[Round "6.27"]
[White "Cramling, Pia"]
[Black "Ivanchuk, Vassily"]
[Result "1/2-1/2"]
[ECO "E11"]
[WhiteElo "2470"]
[BlackElo "2698"]
[PlyCount "60"]
[EventDate "2020.01.21"]
[EventType "swiss"]
[EventRounds "10"]
[EventCountry "GGB"]
[SourceTitle "BritBase"]
[Source "John Saunders"]
[SourceDate "2021.06.05"]
[SourceVersion "1"]
[SourceVersionDate "2021.06.05"]
[SourceQuality "1"]
[TimeControl "40/100:0"]
[WhiteClock "0:18:16"]
[BlackClock "1:04:17"]

1. d4 {[%emt 0:00:00]} Nf6 {[%emt 0:00:00]} 2. c4 {[%emt 0:00:00]} e6 {[%emt 0:
00:00]} 3. Nf3 {[%emt 0:00:00]} Bb4+ {[%emt 0:00:00]} 4. Bd2 {[%emt 0:00:00]}
c5 {[%emt 0:00:00]} 5. Bxb4 {[%emt 0:00:00]} cxb4 {[%emt 0:00:00]} 6. g3 {
[%emt 0:00:00]} O-O {[%emt 0:00:00]} 7. Bg2 {[%emt 0:00:00]} d6 {[%emt 0:00:00]
} 8. a3 {[%emt 0:00:00]} Qb6 {[%emt 0:00:00]} 9. O-O {[%emt 0:00:00]} Nc6 {
[%emt 0:00:00]} 10. Qb3 {[%emt 0:00:00]} e5 {[%emt 0:00:00]} 11. d5 {[%emt 0:
00:00]} Na5 {[%emt 0:00:00]} 12. Qxb4 {[%emt 0:00:00]} Qxb4 {[%emt 0:00:00]}
13. axb4 {[%emt 0:00:00]} Nxc4 {[%emt 0:00:00]} 14. Nfd2 {[%emt 0:00:00]} Nb6 {
[%emt 0:00:00]} 15. e4 {[%emt 0:00:00]} Bd7 {[%emt 0:00:00]} 16. Na3 {[%emt 0:
00:00]} Rfc8 {[%emt 0:00:00]} 17. Rfc1 {[%emt 0:00:00]} Kf8 {[%emt 0:00:00]}
18. Ndc4 {[%emt 0:00:00]} Nxc4 {[%emt 0:00:00]} 19. Nxc4 {[%emt 0:00:00]} Ne8 {
[%emt 0:00:00]} 20. f4 {[%emt 0:00:00]} Rc7 {[%emt 0:00:00]} 21. Rc3 {[%emt 0:
00:00]} Rac8 {[%emt 0:00:00]} 22. Rac1 {[%emt 0:00:00]} f6 {[%emt 0:00:00]} 23.
Kf2 {[%emt 0:00:00]} Ke7 {[%emt 0:00:00]} 24. Ke3 {[%emt 0:00:00]} g6 {[%emt 0:
00:00]} 25. Bf3 {[%emt 0:00:00]} b6 {[%emt 0:00:00]} 26. Be2 {[%emt 0:00:00]}
Kd8 {[%emt 0:00:00]} 27. Bd3 {[%emt 0:00:00]} Rb8 {[%emt 0:00:00]} 28. Ra1 {
[%emt 0:00:00]} Rbb7 {[%emt 0:00:00]} 29. h4 {[%emt 0:00:00]} h6 {[%emt 0:00:
00]} 30. Kd2 {[%emt 0:00:00]} Ke7 {[%emt 0:00:00]} 1/2-1/2

[Event "Gibraltar Masters 18th"]
[Site "Gibraltar"]
[Date "2020.01.26"]
[Round "6.28"]
[White "Matlakov, Maxim"]
[Black "Stefanova, Antoaneta"]
[Result "1-0"]
[ECO "C78"]
[WhiteElo "2698"]
[BlackElo "2469"]
[PlyCount "83"]
[EventDate "2020.01.21"]
[EventType "swiss"]
[EventRounds "10"]
[EventCountry "GGB"]
[SourceTitle "BritBase"]
[Source "John Saunders"]
[SourceDate "2021.06.05"]
[SourceVersion "1"]
[SourceVersionDate "2021.06.05"]
[SourceQuality "1"]
[TimeControl "40/100:0"]
[WhiteClock "0:00:42"]
[BlackClock "0:01:39"]

1. e4 {[%emt 0:00:00]} e5 {[%emt 0:00:00]} 2. Nf3 {[%emt 0:00:00]} Nc6 {
[%emt 0:00:00]} 3. Bb5 {[%emt 0:00:00]} a6 {[%emt 0:00:00]} 4. Ba4 {[%emt 0:00:
00]} Nf6 {[%emt 0:00:00]} 5. O-O {[%emt 0:00:00]} Bc5 {[%emt 0:00:00]} 6. c3 {
[%emt 0:00:00]} O-O {[%emt 0:00:00]} 7. d4 {[%emt 0:00:00]} Ba7 {[%emt 0:00:00]
} 8. Re1 {[%emt 0:00:00]} b5 {[%emt 0:00:00]} 9. Bc2 {[%emt 0:00:00]} d6 {
[%emt 0:00:00]} 10. h3 {[%emt 0:00:00]} Re8 {[%emt 0:00:00]} 11. Bg5 {[%emt 0:
00:00]} h6 {[%emt 0:00:00]} 12. Bh4 {[%emt 0:00:00]} exd4 {[%emt 0:00:00]} 13.
Nxd4 {[%emt 0:00:00]} Ne5 {[%emt 0:00:00]} 14. a4 {[%emt 0:00:00]} b4 {[%emt 0:
00:00]} 15. Nd2 {[%emt 0:00:00]} Bb7 {[%emt 0:00:00]} 16. a5 {[%emt 0:00:00]}
c5 {[%emt 0:00:00]} 17. Nf5 {[%emt 0:00:00]} bxc3 {[%emt 0:00:00]} 18. bxc3 {
[%emt 0:00:00]} Bb8 {[%emt 0:00:00]} 19. Bb3 {[%emt 0:00:00]} Ra7 {[%emt 0:00:
00]} 20. Qc2 {[%emt 0:00:00]} Ng6 {[%emt 0:00:00]} 21. e5 {[%emt 0:00:00]} Nxh4
{[%emt 0:00:00]} 22. exf6 {[%emt 0:00:00]} Nxf5 {[%emt 0:00:00]} 23. Qxf5 {
[%emt 0:00:00]} d5 {[%emt 0:00:00]} 24. fxg7 {[%emt 0:00:00]} Kxg7 {[%emt 0:00:
00]} 25. Rxe8 {[%emt 0:00:00]} Qxe8 {[%emt 0:00:00]} 26. Bc2 {[%emt 0:00:00]}
Qe5 {[%emt 0:00:22]} 27. Qh7+ {[%emt 0:00:00]} Kf8 {[%emt 0:00:00]} 28. Qxh6+ {
[%emt 0:00:00]} Qg7 {[%emt 0:00:00]} 29. Qb6 {[%emt 0:00:00]} Qxc3 {[%emt 0:00:
00]} 30. Qd8+ {[%emt 0:00:00]} Kg7 {[%emt 0:00:00]} 31. Qg5+ {[%emt 0:00:00]}
Kf8 {[%emt 0:00:00]} 32. Re1 {[%emt 0:00:00]} Bc6 {[%emt 0:00:00]} 33. Qh6+ {
[%emt 0:00:00]} Kg8 {[%emt 0:00:00]} 34. Bh7+ {[%emt 0:00:00]} Kh8 {[%emt 0:00:
00]} 35. Bf5+ {[%emt 0:00:00]} Kg8 {[%emt 0:00:00]} 36. Nf3 {[%emt 0:00:00]}
Rc7 {[%emt 0:00:00]} 37. Bh7+ {[%emt 0:00:00]} Kh8 {[%emt 0:00:00]} 38. Be4+ {
[%emt 0:00:00]} Kg8 {[%emt 0:00:00]} 39. Bh7+ {[%emt 0:00:00]} Kh8 {[%emt 0:00:
00]} 40. Re5 {[%emt 0:00:35]} f6 {[%emt 0:00:00]} 41. Bf5+ {[%emt 0:02:06]} Kg8
{[%emt 0:01:19]} 42. Be6+ {[%emt 0:00:00]} 1-0

[Event "Gibraltar Masters 18th"]
[Site "Gibraltar"]
[Date "2020.01.26"]
[Round "6.29"]
[White "Krishna, C R G."]
[Black "Tabatabaei, M.Amin"]
[Result "1-0"]
[ECO "D94"]
[WhiteElo "2436"]
[BlackElo "2638"]
[PlyCount "121"]
[EventDate "2020.01.21"]
[EventType "swiss"]
[EventRounds "10"]
[EventCountry "GGB"]
[SourceTitle "BritBase"]
[Source "John Saunders"]
[SourceDate "2021.06.05"]
[SourceVersion "1"]
[SourceVersionDate "2021.06.05"]
[SourceQuality "1"]
[TimeControl "40/100:0"]
[WhiteClock "0:21:06"]
[BlackClock "0:22:11"]

1. d4 {[%emt 0:00:00]} Nf6 {[%emt 0:00:00]} 2. c4 {[%emt 0:00:00]} g6 {[%emt 0:
00:00]} 3. Nf3 {[%emt 0:00:00]} Bg7 {[%emt 0:00:00]} 4. e3 {[%emt 0:00:00]} O-O
{[%emt 0:00:00]} 5. Be2 {[%emt 0:00:00]} c5 {[%emt 0:00:00]} 6. O-O {[%emt 0:
00:00]} cxd4 {[%emt 0:00:00]} 7. exd4 {[%emt 0:00:00]} d5 {[%emt 0:00:00]} 8.
Nc3 {[%emt 0:00:00]} dxc4 {[%emt 0:00:00]} 9. Bxc4 {[%emt 0:00:00]} b6 {
[%emt 0:00:00]} 10. Bg5 {[%emt 0:00:00]} Bb7 {[%emt 0:00:00]} 11. Qe2 {[%emt 0:
00:00]} Nc6 {[%emt 0:00:00]} 12. Rad1 {[%emt 0:00:00]} Na5 {[%emt 0:00:00]} 13.
Bd3 {[%emt 0:00:00]} Rc8 {[%emt 0:00:00]} 14. Rfe1 {[%emt 0:00:00]} h6 {
[%emt 0:00:00]} 15. Bf4 {[%emt 0:00:00]} e6 {[%emt 0:00:00]} 16. Nb5 {[%emt 0:
00:00]} Bxf3 {[%emt 0:00:00]} 17. Qxf3 {[%emt 0:00:00]} Nc6 {[%emt 0:00:00]}
18. Bd6 {[%emt 0:00:00]} Nxd4 {[%emt 0:00:00]} 19. Nxd4 {[%emt 0:00:00]} Qxd6 {
[%emt 0:00:00]} 20. Ba6 {[%emt 0:00:00]} Nd5 {[%emt 0:00:00]} 21. Bxc8 {
[%emt 0:00:00]} Rxc8 {[%emt 0:00:00]} 22. g3 {[%emt 0:00:00]} h5 {[%emt 0:00:
00]} 23. Qd3 {[%emt 0:00:00]} Ne7 {[%emt 0:00:00]} 24. Nb5 {[%emt 0:00:00]}
Qxd3 {[%emt 0:00:00]} 25. Rxd3 {[%emt 0:00:00]} Nd5 {[%emt 0:00:00]} 26. Rd2 {
[%emt 0:00:00]} Bh6 {[%emt 0:00:00]} 27. Rde2 {[%emt 0:00:00]} a5 {[%emt 0:00:
00]} 28. Rd1 {[%emt 0:00:00]} Bf8 {[%emt 0:00:00]} 29. Nd4 {[%emt 0:00:00]} Bg7
{[%emt 0:00:00]} 30. Nf3 {[%emt 0:00:00]} a4 {[%emt 0:00:00]} 31. a3 {[%emt 0:
00:00]} b5 {[%emt 0:00:00]} 32. Rdd2 {[%emt 0:00:00]} Nb6 {[%emt 0:00:00]} 33.
Ne5 {[%emt 0:00:00]} Nd5 {[%emt 0:00:18]} 34. Kg2 {[%emt 0:00:00]} g5 {[%emt 0:
00:12]} 35. Nd3 {[%emt 0:00:00]} Rc4 {[%emt 0:00:00]} 36. Rc2 {[%emt 0:00:00]}
Nb6 {[%emt 0:00:09]} 37. Rxc4 {[%emt 0:00:00]} Nxc4 {[%emt 0:00:00]} 38. f4 {
[%emt 0:00:00]} gxf4 {[%emt 0:00:17]} 39. gxf4 {[%emt 0:00:00]} Kh7 {[%emt 0:
00:08]} 40. Kf3 {[%emt 0:00:00]} Kg6 {[%emt 0:00:03]} 41. Rg2+ {[%emt 0:01:28]}
Kh6 {[%emt 0:01:22]} 42. Rg5 {[%emt 0:00:00]} Nxb2 {[%emt 0:00:00]} 43. Ne5 {
[%emt 0:00:00]} Bxe5 {[%emt 0:00:00]} 44. Rxe5 {[%emt 0:00:00]} Nc4 {[%emt 0:
00:00]} 45. Rxb5 {[%emt 0:00:00]} Nxa3 {[%emt 0:00:00]} 46. Rb4 {[%emt 0:00:00]
} Nc2 {[%emt 0:00:00]} 47. Rxa4 {[%emt 0:00:00]} Ne1+ {[%emt 0:00:00]} 48. Kf2
{[%emt 0:00:00]} Nd3+ {[%emt 0:00:00]} 49. Ke2 {[%emt 0:00:00]} Nc5 {[%emt 0:
00:00]} 50. Rc4 {[%emt 0:00:00]} Nb3 {[%emt 0:00:00]} 51. Kd3 {[%emt 0:00:00]}
Kg6 {[%emt 0:00:00]} 52. Kc3 {[%emt 0:00:00]} Nc1 {[%emt 0:00:00]} 53. Re4 {
[%emt 0:00:00]} Kf5 {[%emt 0:00:00]} 54. Re1 {[%emt 0:00:00]} Na2+ {[%emt 0:00:
00]} 55. Kb3 {[%emt 0:00:00]} Kxf4 {[%emt 0:00:00]} 56. Kxa2 {[%emt 0:00:00]}
Kf3 {[%emt 0:00:00]} 57. Kb2 {[%emt 0:00:00]} Kf2 {[%emt 0:00:00]} 58. Re4 {
[%emt 0:00:00]} f5 {[%emt 0:00:00]} 59. Rh4 {[%emt 0:00:00]} Kg2 {[%emt 0:00:
00]} 60. Kc2 {[%emt 0:00:00]} e5 {[%emt 0:00:00]} 61. Rxh5 {[%emt 0:00:00]} 1-0

[Event "Gibraltar Masters 18th"]
[Site "Gibraltar"]
[Date "2020.01.26"]
[Round "6.30"]
[White "Deac, Bogdan-Daniel"]
[Black "Batsiashvili, Nino"]
[Result "1-0"]
[ECO "D37"]
[WhiteElo "2626"]
[BlackElo "2456"]
[PlyCount "91"]
[EventDate "2020.01.21"]
[EventType "swiss"]
[EventRounds "10"]
[EventCountry "GGB"]
[SourceTitle "BritBase"]
[Source "John Saunders"]
[SourceDate "2021.06.05"]
[SourceVersion "1"]
[SourceVersionDate "2021.06.05"]
[SourceQuality "1"]
[TimeControl "40/100:0"]
[WhiteClock "0:24:45"]
[BlackClock "0:01:12"]

1. Nf3 {[%emt 0:00:00]} d5 {[%emt 0:00:00]} 2. d4 {[%emt 0:00:00]} e6 {[%emt 0:
00:00]} 3. c4 {[%emt 0:00:00]} a6 {[%emt 0:00:00]} 4. cxd5 {[%emt 0:00:00]}
exd5 {[%emt 0:00:00]} 5. Nc3 {[%emt 0:00:00]} Nf6 {[%emt 0:00:00]} 6. Qb3 {
[%emt 0:00:00]} c5 {[%emt 0:00:00]} 7. Bg5 {[%emt 0:00:00]} c4 {[%emt 0:00:00]}
8. Qc2 {[%emt 0:00:00]} Nc6 {[%emt 0:00:00]} 9. Bxf6 {[%emt 0:00:00]} gxf6 {
[%emt 0:00:00]} 10. g3 {[%emt 0:00:00]} Be6 {[%emt 0:00:00]} 11. Bg2 {[%emt 0:
00:00]} f5 {[%emt 0:00:00]} 12. O-O {[%emt 0:00:00]} h5 {[%emt 0:00:00]} 13. b3
{[%emt 0:00:00]} h4 {[%emt 0:00:00]} 14. bxc4 {[%emt 0:00:00]} hxg3 {[%emt 0:
00:00]} 15. hxg3 {[%emt 0:00:00]} Rc8 {[%emt 0:00:00]} 16. cxd5 {[%emt 0:00:00]
} Nb4 {[%emt 0:00:00]} 17. Qb1 {[%emt 0:00:00]} Rxc3 {[%emt 0:00:00]} 18. dxe6
{[%emt 0:00:00]} fxe6 {[%emt 0:00:00]} 19. Rc1 {[%emt 0:00:00]} Rxc1+ {[%emt 0:
00:00]} 20. Qxc1 {[%emt 0:00:00]} Nd5 {[%emt 0:00:00]} 21. Ne5 {[%emt 0:00:00]}
Bg7 {[%emt 0:00:00]} 22. Bxd5 {[%emt 0:00:00]} exd5 {[%emt 0:00:00]} 23. Rb1 {
[%emt 0:00:00]} O-O {[%emt 0:00:00]} 24. Rxb7 {[%emt 0:00:00]} f4 {[%emt 0:00:
00]} 25. Qc6 {[%emt 0:00:00]} Rf6 {[%emt 0:00:00]} 26. Rd7 {[%emt 0:00:00]} Qa5
{[%emt 0:00:00]} 27. Qxd5+ {[%emt 0:00:00]} Qxd5 {[%emt 0:00:00]} 28. Rxd5 {
[%emt 0:00:00]} fxg3 {[%emt 0:00:00]} 29. fxg3 {[%emt 0:00:00]} Rb6 {[%emt 0:
00:00]} 30. Ra5 {[%emt 0:00:00]} Bh6 {[%emt 0:00:00]} 31. Kf2 {[%emt 0:00:00]}
Bd2 {[%emt 0:00:00]} 32. Rc5 {[%emt 0:00:00]} Rb2 {[%emt 0:00:00]} 33. Nc4 {
[%emt 0:00:00]} Rxa2 {[%emt 0:00:00]} 34. Nxd2 {[%emt 0:00:00]} Rxd2 {[%emt 0:
00:00]} 35. Ke3 {[%emt 0:00:00]} Ra2 {[%emt 0:00:00]} 36. Rc7 {[%emt 0:00:00]}
a5 {[%emt 0:00:00]} 37. Ra7 {[%emt 0:00:00]} a4 {[%emt 0:00:00]} 38. d5 {
[%emt 0:00:00]} Kf8 {[%emt 0:00:00]} 39. Kf3 {[%emt 0:00:00]} a3 {[%emt 0:00:
00]} 40. e4 {[%emt 0:00:00]} Ra1 {[%emt 0:00:00]} 41. Kf4 {[%emt 0:00:00]} Ke8
{[%emt 0:02:23]} 42. Ke5 {[%emt 0:00:00]} Kd8 {[%emt 0:00:00]} 43. Kd6 {
[%emt 0:00:00]} Kc8 {[%emt 0:00:00]} 44. e5 {[%emt 0:00:00]} a2 {[%emt 0:00:00]
} 45. e6 {[%emt 0:00:00]} Kb8 {[%emt 0:00:00]} 46. Ra3 {[%emt 0:00:00]} 1-0

[Event "Gibraltar Masters 18th"]
[Site "Gibraltar"]
[Date "2020.01.26"]
[Round "6.31"]
[White "Vocaturo, Daniele"]
[Black "Kobo, Ori"]
[Result "1-0"]
[ECO "C78"]
[WhiteElo "2622"]
[BlackElo "2445"]
[PlyCount "81"]
[EventDate "2020.01.21"]
[EventType "swiss"]
[EventRounds "10"]
[EventCountry "GGB"]
[SourceTitle "BritBase"]
[Source "John Saunders"]
[SourceDate "2021.06.05"]
[SourceVersion "1"]
[SourceVersionDate "2021.06.05"]
[SourceQuality "1"]
[TimeControl "40/100:0"]
[WhiteClock "0:30:28"]
[BlackClock "0:00:37"]

1. e4 {[%emt 0:00:00]} e5 {[%emt 0:00:00]} 2. Nf3 {[%emt 0:00:00]} Nc6 {
[%emt 0:00:00]} 3. Bb5 {[%emt 0:00:00]} a6 {[%emt 0:00:00]} 4. Ba4 {[%emt 0:00:
00]} Nf6 {[%emt 0:00:00]} 5. O-O {[%emt 0:00:00]} Bc5 {[%emt 0:00:00]} 6. c3 {
[%emt 0:00:00]} b5 {[%emt 0:00:00]} 7. Bc2 {[%emt 0:00:00]} d5 {[%emt 0:00:00]}
8. a4 {[%emt 0:00:00]} dxe4 {[%emt 0:00:00]} 9. axb5 {[%emt 0:00:00]} exf3 {
[%emt 0:00:00]} 10. Qxf3 {[%emt 0:00:00]} e4 {[%emt 0:00:00]} 11. Bxe4 {
[%emt 0:00:00]} Ne5 {[%emt 0:00:00]} 12. Qe2 {[%emt 0:00:00]} O-O {[%emt 0:00:
00]} 13. d4 {[%emt 0:00:00]} Bg4 {[%emt 0:00:00]} 14. Qc2 {[%emt 0:00:00]} Nxe4
{[%emt 0:00:00]} 15. Qxe4 {[%emt 0:00:00]} Nf3+ {[%emt 0:00:00]} 16. gxf3 {
[%emt 0:00:00]} Bh3 {[%emt 0:00:00]} 17. dxc5 {[%emt 0:00:00]} Bxf1 {[%emt 0:
00:00]} 18. Kxf1 {[%emt 0:00:00]} Qd1+ {[%emt 0:00:00]} 19. Qe1 {[%emt 0:00:00]
} Qxf3 {[%emt 0:00:00]} 20. Be3 {[%emt 0:00:00]} Qh3+ {[%emt 0:00:00]} 21. Ke2
{[%emt 0:00:00]} Qg4+ {[%emt 0:00:00]} 22. Kd2 {[%emt 0:00:00]} Rad8+ {[%emt 0:
00:00]} 23. Kc1 {[%emt 0:00:00]} axb5 {[%emt 0:00:00]} 24. Nd2 {[%emt 0:00:00]}
b4 {[%emt 0:00:00]} 25. Qd1 {[%emt 0:00:00]} Qh3 {[%emt 0:00:00]} 26. cxb4 {
[%emt 0:00:00]} Qxh2 {[%emt 0:00:00]} 27. Ra3 {[%emt 0:00:00]} h5 {[%emt 0:00:
00]} 28. Kc2 {[%emt 0:00:00]} Rb8 {[%emt 0:00:00]} 29. Rb3 {[%emt 0:00:00]} Qh4
{[%emt 0:00:00]} 30. b5 {[%emt 0:00:00]} Qa4 {[%emt 0:00:00]} 31. Qe2 {[%emt 0:
00:00]} Rfd8 {[%emt 0:00:00]} 32. Kc3 {[%emt 0:00:00]} Qa1 {[%emt 0:00:00]} 33.
Qf1 {[%emt 0:00:00]} Qa5+ {[%emt 0:00:00]} 34. Rb4 {[%emt 0:00:00]} Qa8 {
[%emt 0:00:00]} 35. Qc4 {[%emt 0:00:00]} Qh1 {[%emt 0:00:00]} 36. Kc2 {[%emt 0:
00:00]} Ra8 {[%emt 0:00:00]} 37. Qh4 {[%emt 0:00:00]} Qe1 {[%emt 0:00:00]} 38.
Ra4 {[%emt 0:00:00]} Qe2 {[%emt 0:00:26]} 39. Qc4 {[%emt 0:00:00]} Qxc4+ {
[%emt 0:00:42]} 40. Rxc4 {[%emt 0:00:00]} Rd5 {[%emt 0:00:00]} 41. Bf4 {
[%emt 0:00:00]} 1-0

[Event "Gibraltar Masters 18th"]
[Site "Gibraltar"]
[Date "2020.01.26"]
[Round "6.32"]
[White "Santos Latasa, Jaime"]
[Black "Ladron De Guevara Pinto, Paolo"]
[Result "1-0"]
[ECO "A42"]
[WhiteElo "2586"]
[BlackElo "2445"]
[PlyCount "95"]
[EventDate "2020.01.21"]
[EventType "swiss"]
[EventRounds "10"]
[EventCountry "GGB"]
[SourceTitle "BritBase"]
[Source "John Saunders"]
[SourceDate "2021.06.05"]
[SourceVersion "1"]
[SourceVersionDate "2021.06.05"]
[SourceQuality "1"]
[TimeControl "40/100:0"]
[WhiteClock "1:33:29"]
[BlackClock "0:24:03"]

1. c4 {[%emt 0:00:00]} g6 {[%emt 0:00:00]} 2. d4 {[%emt 0:00:00]} Bg7 {[%emt 0:
00:00]} 3. Nc3 {[%emt 0:00:00]} d6 {[%emt 0:00:00]} 4. e4 {[%emt 0:00:00]} e5 {
[%emt 0:00:00]} 5. d5 {[%emt 0:00:00]} a5 {[%emt 0:00:00]} 6. Be3 {[%emt 0:00:
00]} Na6 {[%emt 0:00:00]} 7. Bd3 {[%emt 0:00:00]} Ne7 {[%emt 0:00:00]} 8. Qd2 {
[%emt 0:00:00]} f5 {[%emt 0:00:00]} 9. f3 {[%emt 0:00:00]} O-O {[%emt 0:00:00]}
10. Nge2 {[%emt 0:00:00]} Bd7 {[%emt 0:00:00]} 11. Bc2 {[%emt 0:00:00]} Qe8 {
[%emt 0:00:00]} 12. Rd1 {[%emt 0:00:00]} f4 {[%emt 0:00:00]} 13. Bf2 {[%emt 0:
00:00]} b6 {[%emt 0:00:00]} 14. Rb1 {[%emt 0:00:00]} g5 {[%emt 0:00:00]} 15. h3
{[%emt 0:00:00]} h5 {[%emt 0:00:00]} 16. a3 {[%emt 0:00:00]} Ng6 {[%emt 0:00:
00]} 17. Bd1 {[%emt 0:00:00]} Rf7 {[%emt 0:00:00]} 18. b4 {[%emt 0:00:00]} axb4
{[%emt 0:00:00]} 19. axb4 {[%emt 0:00:00]} Bf8 {[%emt 0:00:00]} 20. Nc1 {
[%emt 0:00:00]} Rg7 {[%emt 0:00:00]} 21. Nd3 {[%emt 0:00:00]} Nh8 {[%emt 0:00:
00]} 22. Be2 {[%emt 0:00:00]} Nf7 {[%emt 0:00:00]} 23. Kd1 {[%emt 0:00:00]} Rc8
{[%emt 0:00:00]} 24. Kc2 {[%emt 0:00:00]} Rg6 {[%emt 0:00:00]} 25. Rhg1 {
[%emt 0:00:00]} Bh6 {[%emt 0:00:00]} 26. Ra1 {[%emt 0:00:00]} Nb8 {[%emt 0:00:
00]} 27. Kb2 {[%emt 0:00:00]} g4 {[%emt 0:00:00]} 28. hxg4 {[%emt 0:00:00]}
hxg4 {[%emt 0:00:00]} 29. g3 {[%emt 0:00:00]} Rg7 {[%emt 0:00:00]} 30. gxf4 {
[%emt 0:00:00]} exf4 {[%emt 0:00:00]} 31. Nxf4 {[%emt 0:00:00]} Ne5 {[%emt 0:
00:00]} 32. fxg4 {[%emt 0:00:00]} Bxg4 {[%emt 0:00:00]} 33. Be3 {[%emt 0:00:00]
} Nbd7 {[%emt 0:00:00]} 34. Kb3 {[%emt 0:00:00]} Nf6 {[%emt 0:00:00]} 35. Nh5 {
[%emt 0:00:00]} Nxh5 {[%emt 0:00:00]} 36. Bxh6 {[%emt 0:00:00]} Rg6 {[%emt 0:
00:00]} 37. Bg5 {[%emt 0:00:00]} Qd7 {[%emt 0:00:00]} 38. Bxg4 {[%emt 0:00:00]}
Nxg4 {[%emt 0:00:00]} 39. Rg2 {[%emt 0:00:00]} Ne5 {[%emt 0:00:30]} 40. Rh1 {
[%emt 0:00:00]} Ng7 {[%emt 0:00:00]} 41. Rgh2 {[%emt 0:00:00]} Nf7 {[%emt 0:01:
54]} 42. Be3 {[%emt 0:00:00]} Re8 {[%emt 0:00:00]} 43. Rg2 {[%emt 0:00:00]}
Rxg2 {[%emt 0:00:00]} 44. Qxg2 {[%emt 0:00:00]} Qe7 {[%emt 0:00:00]} 45. Qg6 {
[%emt 0:00:00]} Qe5 {[%emt 0:00:00]} 46. Qh7+ {[%emt 0:00:00]} Kf8 {[%emt 0:00:
00]} 47. Rg1 {[%emt 0:00:00]} Re7 {[%emt 0:00:00]} 48. Rf1 {[%emt 0:00:00]} 1-0